bitfinex/quotes_BTCUSD_20250814
["timestamp","ask_amount","ask_price","bid_price","bid_amount"]
[1755166268276,0.29154053,121460.0,121450.0,0.16666]
[1755166268459,0.77403375,121460.0,121450.0,0.16666]
[1755166269338,0.77403375,121460.0,121450.0,0.16372]
[1755166269550,0.77911375,121460.0,121450.0,0.16372]
[1755166271221,0.77911375,121460.0,121450.0,0.16175]
[1755166271428,0.77911375,121460.0,121450.0,0.16171]
[1755166271821,0.77911375,121460.0,121450.0,0.16381]
[1755166272027,0.86159818,121460.0,121450.0,0.16381]
[1755166274014,0.86159818,121460.0,121450.0,0.16171]
[1755166275366,0.85865818,121460.0,121450.0,0.16381]
[1755166275958,0.86159818,121460.0,121450.0,0.15901]
[1755166276184,0.77403375,121460.0,121450.0,0.03177]
[1755166276398,0.77403375,121460.0,121450.0,0.16222]
[1755166276626,0.77403375,121460.0,121450.0,0.15901]
[1755166277447,0.77403375,121460.0,121450.0,0.16222]
[1755166277957,0.75658473,121460.0,121450.0,0.16222]
[1755166279081,0.75658473,121460.0,121450.0,0.15901]
[1755166279283,0.83906916,121460.0,121450.0,0.15901]
[1755166279588,0.84414916,121460.0,121450.0,0.15901]
[1755166280446,0.84414916,121460.0,121450.0,0.03177]
[1755166280603,0.84414916,121460.0,121450.0,0.15901]
[1755166280819,0.75614473,121460.0,121450.0,0.15901]
[1755166281787,0.76122473,121460.0,121450.0,0.15901]
[1755166281960,0.76122473,121460.0,121450.0,0.03177]
[1755166282168,0.76122473,121460.0,121450.0,0.15687]
[1755166283595,0.76122473,121460.0,121450.0,0.15897]
[1755166284042,0.75614473,121460.0,121450.0,0.15897]
[1755166284276,0.83862916,121460.0,121450.0,0.03177]
[1755166284503,0.84076916,121460.0,121450.0,0.15897]
[1755166284751,0.84370916,121460.0,121450.0,0.03177]
[1755166284979,0.83862916,121460.0,121450.0,0.15897]
[1755166285225,0.83862916,121460.0,121450.0,0.03703846]
[1755166285226,0.002,121460.0,121450.0,0.03703846]
[1755166285445,0.002,121460.0,121450.0,0.50629692]
[1755166285664,0.002,121460.0,121450.0,0.37498]
[1755166285881,0.002,121460.0,121450.0,0.50218]
[1755166286068,0.001,121460.0,121450.0,0.50218]
[1755166286338,0.001,121460.0,121450.0,0.58466443]
[1755166286557,0.001,121460.0,121450.0,0.50518]
[1755166286764,0.17586795,121480.0,121450.0,0.50518]
[1755166286945,0.17586795,121480.0,121460.0,0.00411658]
[1755166287118,0.17586795,121480.0,121470.0,0.13251]
[1755166288936,0.17586795,121480.0,121470.0,0.13351]
[1755166289480,0.17586795,121480.0,121470.0,0.14049875]
[1755166290637,0.17586795,121480.0,121470.0,0.01329875]
[1755166290773,0.17586795,121480.0,121470.0,0.13351]
[1755166291613,0.25835238,121480.0,121470.0,0.0031]
[1755166291820,0.7408456,121480.0,121470.0,0.1303]
[1755166293488,0.7437856,121480.0,121470.0,0.1303]
[1755166293995,0.65836117,121480.0,121470.0,0.1303]
[1755166294434,0.66050117,121480.0,121470.0,0.1303]
[1755166294715,0.66344117,121480.0,121470.0,0.0031]
[1755166295021,0.66344117,121480.0,121470.0,0.12828]
[1755166295467,0.74616442,121480.0,121470.0,0.001]
[1755166295896,0.74616442,121480.0,121470.0,0.12828]
[1755166296099,0.77086042,121480.0,121470.0,0.12828]
[1755166296313,0.77086042,121480.0,121470.0,0.001]
[1755166296546,0.85334485,121480.0,121470.0,0.12824]
[1755166296886,0.87079387,121480.0,121470.0,0.001]
[1755166297226,0.87079387,121480.0,121470.0,0.12824]
[1755166297695,0.38830065,121480.0,121470.0,0.12824]
[1755166297903,0.85334485,121480.0,121470.0,0.12824]
[1755166298320,0.77086042,121480.0,121470.0,0.12824]
[1755166298962,0.77086042,121480.0,121470.0,0.001]
[1755166299168,0.77086042,121480.0,121470.0,0.1282]
[1755166303962,0.77086042,121480.0,121470.0,0.1302]
[1755166304174,0.76792042,121480.0,121470.0,0.1302]
[1755166304578,0.77087042,121480.0,121470.0,0.00304]
[1755166304752,0.77087042,121480.0,121470.0,0.1302]
[1755166306138,0.2883772,121480.0,121470.0,0.1302]
[1755166306342,0.77087042,121480.0,121470.0,0.1302]
[1755166306790,0.68519717,121480.0,121470.0,0.1302]
[1755166306996,0.68519717,121480.0,121470.0,0.00624]
[1755166306997,0.17586795,121480.0,121470.0,0.00624]
[1755166307204,0.17586795,121480.0,121470.0,0.1334]
[1755166307401,0.17586795,121480.0,121470.0,0.1302]
[1755166308815,0.17586795,121480.0,121470.0,0.1334]
[1755166312099,0.17586795,121480.0,121470.0,0.1302]
[1755166317458,0.17586795,121480.0,121470.0,0.00304]
[1755166317658,0.17586795,121480.0,121470.0,0.1302]
[1755166318759,0.17881795,121480.0,121470.0,0.1302]
[1755166319827,0.18081795,121480.0,121470.0,0.1302]
[1755166320234,0.66331117,121480.0,121470.0,0.1302]
[1755166320602,0.66331117,121480.0,121470.0,0.001]
[1755166320800,0.82851885,121480.0,121470.0,0.12816]
[1755166321390,0.34602563,121480.0,121470.0,0.12816]
[1755166321647,0.82851885,121480.0,121470.0,0.12816]
[1755166321930,0.18081795,121480.0,121470.0,0.00304]
[1755166322163,0.17586795,121480.0,121470.0,0.1302]
[1755166322398,0.17786795,121480.0,121470.0,0.1302]
[1755166322626,0.18081795,121480.0,121470.0,0.1302]
[1755166323578,0.18081795,121480.0,121470.0,0.001]
[1755166323813,0.66331117,121480.0,121470.0,0.12816]
[1755166324293,0.74603442,121480.0,121470.0,0.12816]
[1755166325154,0.82851885,121480.0,121470.0,0.12816]
[1755166325361,0.74603442,121480.0,121470.0,0.001]
[1755166325602,0.74603442,121480.0,121470.0,0.12812]
[1755166325808,0.2635412,121480.0,121470.0,0.001]
[1755166326018,0.2635412,121480.0,121470.0,0.12812]
[1755166326656,0.2635412,121480.0,121470.0,0.001]
[1755166326862,0.74603442,121480.0,121470.0,0.001]
[1755166327069,0.2635412,121480.0,121470.0,0.12812]
[1755166327283,0.2635412,121480.0,121470.0,0.14113783]
[1755166327479,0.2635412,121480.0,121470.0,0.12812]
[1755166327686,0.17786795,121480.0,121470.0,0.13019]
[1755166327889,0.17586795,121480.0,121470.0,0.00307]
[1755166328096,0.18101795,121480.0,121470.0,0.12812]
[1755166329080,0.18101795,121480.0,121470.0,0.13019]
[1755166329237,0.20571195,121480.0,121470.0,0.13224812]
[1755166329901,0.20268195,121480.0,121470.0,0.13224812]
[1755166330468,0.20056195,121480.0,121470.0,0.13224812]
[1755166333167,0.20056195,121480.0,121470.0,0.16551893]
[1755166333380,0.003,121480.0,121470.0,0.13522812]
[1755166333593,0.003,121480.0,121470.0,0.43288949]
[1755166333799,0.027692,121490.0,121480.0,0.34]
[1755166333800,0.003,121490.0,121480.0,0.34]
[1755166334012,0.00229,121490.0,121480.0,5.42328325]
[1755166334238,0.00229,121490.0,121480.0,5.50576768]
[1755166334454,0.00229,121490.0,121480.0,5.5232167]
[1755166334695,0.00229,121490.0,121480.0,5.6503367]
[1755166335315,0.00229,121490.0,121480.0,4.1315007]
[1755166336154,0.00229,121490.0,121480.0,4.1335007]
[1755166337271,0.00229,121490.0,121480.0,4.16981708]
[1755166337686,0.00229,121490.0,121480.0,4.16977708]
[1755166340528,0.00229,121490.0,121480.0,4.17306808]
[1755166341473,0.00229,121490.0,121480.0,4.04598808]
[1755166341605,0.00229,121490.0,121480.0,3.88560408]
[1755166342108,0.00229,121490.0,121480.0,3.57331408]
[1755166347817,0.00229,121490.0,121480.0,3.57327408]
[1755166349377,0.00229,121490.0,121480.0,3.44623408]
[1755166349501,0.00229,121490.0,121480.0,3.57327408]
[1755166349708,0.00229,121490.0,121480.0,3.44623408]
[1755166350073,0.00229,121490.0,121480.0,3.57327408]
[1755166350828,0.00229,121490.0,121480.0,3.49600208]
[1755166351057,0.00229,121490.0,121480.0,3.36896208]
[1755166351233,0.00229,121490.0,121480.0,3.49600208]
[1755166351633,0.00532,121490.0,121480.0,2.06068308]
[1755166352253,0.00229,121490.0,121480.0,2.06068308]
[1755166354323,0.00229,121490.0,121480.0,1.93364308]
[1755166354524,0.00229,121490.0,121480.0,2.06068308]
[1755166357129,0.00542,121490.0,121480.0,2.06068308]
[1755166358099,0.00229,121490.0,121480.0,2.06068308]
[1755166361512,0.00229,121490.0,121480.0,2.0243667]
[1755166362958,0.00229,121490.0,121480.0,2.2217667]
[1755166369075,0.00542,121490.0,121480.0,2.2217667]
[1755166373010,0.00229,121490.0,121480.0,2.2217667]
[1755166375574,0.00542,121490.0,121480.0,2.2217667]
[1755166382602,0.0074,121490.0,121480.0,2.2217667]
[1755166384326,0.0074,121490.0,121480.0,1.42121168]
[1755166384542,0.0074,121490.0,121480.0,1.40300868]
[1755166384710,0.0074,121490.0,121480.0,0.28937425]
[1755166384916,0.0074,121490.0,121480.0,0.41304325]
[1755166385133,0.0074,121490.0,121480.0,0.75304325]
[1755166385336,0.1720226,121490.0,121480.0,0.75304325]
[1755166385536,0.0074,121490.0,121480.0,0.75304325]
[1755166385762,0.1720226,121490.0,121480.0,0.75304325]
[1755166386648,0.0074,121490.0,121480.0,0.75304325]
[1755166386863,0.1720226,121490.0,121480.0,0.75304325]
[1755166387543,0.0074,121490.0,121480.0,0.75304325]
[1755166387893,0.1720226,121490.0,121480.0,0.75304325]
[1755166388112,0.1720226,121490.0,121480.0,0.82834758]
[1755166389732,0.1720226,121490.0,121480.0,0.75304325]
[1755166391348,0.1720226,121490.0,121480.0,0.62608325]
[1755166391454,0.1720226,121490.0,121480.0,0.75304325]
[1755166392395,0.1720226,121490.0,121480.0,0.67032]
[1755166396383,0.25474585,121490.0,121480.0,0.346]
[1755166396598,0.76115907,121490.0,121480.0,0.13292]
[1755166396804,0.67843582,121490.0,121480.0,0.13292]
[1755166397615,0.67843582,121490.0,121480.0,0.12892]
[1755166398041,0.67843582,121490.0,121480.0,0.12992]
[1755166403568,0.1720226,121490.0,121480.0,0.12992]
[1755166403973,0.65451582,121490.0,121480.0,0.12992]
[1755166405993,0.1720226,121490.0,121480.0,0.142912]
[1755166406919,0.1720226,121490.0,121480.0,0.12992]
[1755166409262,0.65451582,121490.0,121480.0,0.12992]
[1755166409495,0.65451582,121490.0,121480.0,0.003]
[1755166409729,0.65451582,121490.0,121480.0,0.12992]
[1755166411262,0.65451582,121490.0,121480.0,0.12988]
[1755166416857,0.65451582,121490.0,121480.0,0.003]
[1755166417061,0.65451582,121490.0,121480.0,0.12988]
[1755166419425,0.70804935,121490.0,121480.0,0.12988]
[1755166420683,0.70804935,121490.0,121480.0,0.003]
[1755166420855,0.70804935,121490.0,121480.0,0.12988]
[1755166421934,0.7907726,121490.0,121480.0,0.003]
[1755166422107,0.7907726,121490.0,121480.0,0.12984]
[1755166422313,0.30827938,121490.0,121480.0,0.12984]
[1755166422514,0.7907726,121490.0,121480.0,0.12984]
[1755166423295,0.7907726,121490.0,121480.0,0.003]
[1755166423502,0.7907726,121490.0,121480.0,0.12984]
[1755166424212,0.7907726,121490.0,121480.0,0.12784]
[1755166424416,0.7917726,121490.0,121480.0,0.12784]
[1755166424625,0.7917726,121490.0,121480.0,0.001]
[1755166424838,0.1646497,121470.0,121460.0,0.19744]
[1755166425056,0.1646497,121470.0,121460.0,0.32428]
[1755166425675,0.1698397,121470.0,121460.0,0.32428]
[1755166426967,0.1698397,121470.0,121460.0,0.19744]
[1755166427100,0.1698397,121470.0,121460.0,0.32428]
[1755166427302,0.1698397,121470.0,121460.0,0.32628]
[1755166427723,0.1698397,121470.0,121460.0,0.20044]
[1755166427921,0.1698397,121470.0,121460.0,0.32728]
[1755166428351,0.1698397,121470.0,121460.0,0.20044]
[1755166428558,0.1698397,121470.0,121460.0,0.32728]
[1755166428724,0.1698397,121470.0,121460.0,0.20044]
[1755166428930,0.1698397,121470.0,121460.0,0.32728]
[1755166430455,0.1698397,121470.0,121460.0,0.20044]
[1755166430666,0.65233292,121470.0,121460.0,0.20044]
[1755166430986,0.73481735,121470.0,121460.0,0.32728]
[1755166431197,0.25232413,121470.0,121460.0,0.32728]
[1755166431329,0.65233292,121470.0,121460.0,0.32728]
[1755166433602,0.65233292,121470.0,121460.0,0.32528]
[1755166433803,0.65233292,121470.0,121460.0,0.32428]
[1755166434004,0.1698397,121470.0,121460.0,0.19844]
[1755166434207,0.65233292,121470.0,121460.0,0.32528]
[1755166436396,0.8175406,121470.0,121460.0,0.32528]
[1755166438016,0.73505617,121470.0,121460.0,0.19844]
[1755166438434,0.73505617,121470.0,121460.0,0.32528]
[1755166438642,0.73505617,121470.0,121460.0,0.19844]
[1755166438946,0.73505617,121470.0,121460.0,0.32528]
[1755166439226,0.73605617,121470.0,121460.0,0.32428]
[1755166439431,0.8185406,121470.0,121460.0,0.32428]
[1755166439795,0.8185406,121470.0,121460.0,0.12684]
[1755166439997,0.16466326,121460.0,121450.0,0.03267]
[1755166440203,0.73506973,121460.0,121450.0,0.15951]
[1755166441231,0.25257651,121460.0,121450.0,0.15951]
[1755166441579,0.73506973,121460.0,121450.0,0.15951]
[1755166442004,0.73506973,121460.0,121450.0,0.16051]
[1755166442603,0.73506973,121460.0,121450.0,0.03367]
[1755166442785,0.73506973,121460.0,121450.0,0.16051]
[1755166443456,0.25257651,121460.0,121450.0,0.16051]
[1755166443658,0.73506973,121460.0,121450.0,0.16051]
[1755166444943,0.16985326,121460.0,121450.0,0.03572846]
[1755166445145,0.16985326,121460.0,121450.0,0.16256846]
[1755166445623,0.16985326,121460.0,121450.0,0.03572846]
[1755166445830,0.16985326,121460.0,121450.0,0.16051]
[1755166446035,0.19455326,121460.0,121450.0,0.16051]
[1755166446746,0.67704648,121460.0,121450.0,0.15528]
[1755166447720,0.18936326,121460.0,121450.0,0.15733846]
[1755166447923,0.16466326,121460.0,121450.0,0.15733846]
[1755166448709,0.16764326,121460.0,121450.0,0.02844]
[1755166448918,0.16975326,121460.0,121450.0,0.15528]
[1755166449144,0.16466326,121460.0,121450.0,0.15528]
[1755166451097,0.16764326,121460.0,121450.0,0.15528]
[1755166451300,0.16975326,121460.0,121450.0,0.15528]
[1755166452716,0.65224648,121460.0,121450.0,0.15528]
[1755166453420,0.16975326,121460.0,121450.0,0.15528]
[1755166453809,0.16764326,121460.0,121450.0,0.15528]
[1755166455724,0.65013648,121460.0,121450.0,0.15528]
[1755166458020,0.22273886,121460.0,121450.0,0.15528]
[1755166458456,0.16975326,121460.0,121450.0,0.15528]
[1755166458876,0.65224648,121460.0,121450.0,0.15528]
[1755166460731,0.16975326,121460.0,121450.0,0.15528]
[1755166460936,0.65224648,121460.0,121450.0,0.15528]
[1755166462201,0.65224648,121460.0,121450.0,0.02844]
[1755166462419,0.65224648,121460.0,121450.0,0.15524]
[1755166463182,0.73473091,121460.0,121450.0,0.02844]
[1755166463397,0.73473091,121460.0,121450.0,0.15524]
[1755166464531,0.81745416,121460.0,121450.0,0.15524]
[1755166464753,0.84215616,121460.0,121450.0,0.15524]
[1755166465174,0.35966294,121460.0,121450.0,0.15524]
[1755166465378,0.84215616,121460.0,121450.0,0.15524]
[1755166465602,0.84215616,121460.0,121450.0,0.02844]
[1755166465810,0.84215616,121460.0,121450.0,0.15524]
[1755166466237,0.84215616,121460.0,121450.0,0.02844]
[1755166466453,0.84215616,121460.0,121450.0,0.15524]
[1755166467083,0.84215616,121460.0,121450.0,0.02844]
[1755166467293,0.84215616,121460.0,121450.0,0.15524]
[1755166467505,0.87869673,121460.0,121450.0,0.15524]
[1755166469349,0.87869673,121460.0,121450.0,0.15424]
[1755166470675,0.87969673,121460.0,121450.0,0.15424]
[1755166471500,0.87969673,121460.0,121450.0,0.02744]
[1755166471626,0.87969673,121460.0,121450.0,0.15424]
[1755166472600,0.87969673,121460.0,121450.0,0.02744]
[1755166472814,0.87969673,121460.0,121450.0,0.15424]
[1755166475457,0.87969673,121460.0,121450.0,0.02744]
[1755166475666,0.87969673,121460.0,121450.0,0.15424]
[1755166476216,0.7972123,121460.0,121450.0,0.15424]
[1755166476412,0.19036526,121460.0,121450.0,0.02949846]
[1755166476831,0.16566326,121460.0,121450.0,0.02949846]
[1755166477096,0.16566326,121460.0,121450.0,0.15629846]
[1755166477328,0.16466326,121460.0,121450.0,0.02949846]
[1755166477886,0.16466326,121460.0,121450.0,0.15629846]
[1755166478767,0.16466326,121460.0,121450.0,0.15729846]
[1755166480355,0.1893477,121470.0,121450.0,0.15729846]
[1755166480567,0.1646497,121470.0,121460.0,0.1268]
[1755166483008,0.1646497,121470.0,121460.0,0.1288]
[1755166483446,0.1656497,121470.0,121460.0,0.1288]
[1755166483878,0.1646497,121470.0,121460.0,0.1288]
[1755166484109,0.1646497,121470.0,121460.0,0.13291658]
[1755166484311,0.1646497,121470.0,121460.0,0.1298]
[1755166485187,0.1646497,121470.0,121460.0,0.003]
[1755166485412,0.1646497,121470.0,121460.0,0.1298]
[1755166486528,0.1678297,121470.0,121460.0,0.1298]
[1755166486728,0.1646497,121470.0,121460.0,0.003]
[1755166486949,0.1646497,121470.0,121460.0,0.12976]
[1755166489468,0.1646497,121470.0,121460.0,0.13387658]
[1755166489886,0.64714292,121470.0,121460.0,0.13387658]
[1755166491034,0.64714292,121470.0,121460.0,0.12976]
[1755166491379,0.64714292,121470.0,121460.0,0.13387658]
[1755166493562,0.1678297,121470.0,121460.0,0.13387658]
[1755166493762,0.65032292,121470.0,121460.0,0.13387658]
[1755166496171,0.64714292,121470.0,121460.0,0.13387658]
[1755166497025,0.1678297,121470.0,121460.0,0.13387658]
[1755166500063,0.1699397,121470.0,121460.0,0.13387658]
[1755166500312,0.1646497,121470.0,121460.0,0.13387658]
[1755166500564,0.23972789,121480.0,121470.0,0.5]
[1755166500782,0.17288018,121480.0,121460.0,0.40996325]
[1755166501197,0.17288018,121480.0,121460.0,0.28320325]
[1755166501401,0.17606018,121480.0,121470.0,0.12676]
[1755166501816,0.17288018,121480.0,121470.0,0.13087624]
[1755166502026,0.17288018,121480.0,121470.0,0.12676]
[1755166502226,0.17606018,121480.0,121470.0,0.12676]
[1755166502852,0.17606018,121480.0,121470.0,0.12776]
[1755166502979,0.17606018,121480.0,121470.0,0.13187624]
[1755166503192,0.17606018,121480.0,121470.0,0.12776]
[1755166503403,0.17606018,121480.0,121470.0,0.12981812]
[1755166503624,0.17288018,121480.0,121470.0,0.13187624]
[1755166503840,0.17288018,121480.0,121470.0,0.13183624]
[1755166504041,0.17288018,121480.0,121470.0,0.17551339]
[1755166504247,0.17288018,121480.0,121470.0,0.12772]
[1755166504453,0.17288018,121480.0,121470.0,0.13183624]
[1755166505973,0.17288018,121480.0,121470.0,0.12772]
[1755166506165,0.17606018,121480.0,121470.0,0.12772]
[1755166506379,0.17606018,121480.0,121470.0,0.13183624]
[1755166506716,0.17606018,121480.0,121470.0,0.12772]
[1755166507883,0.17606018,121480.0,121470.0,0.13183624]
[1755166508400,0.17606018,121480.0,121470.0,0.00511624]
[1755166508593,0.72751111,121480.0,121470.0,0.001]
[1755166509005,0.72751111,121480.0,121470.0,0.12772]
[1755166511124,0.72751111,121480.0,121470.0,0.001]
[1755166511368,0.72751111,121480.0,121470.0,0.12772]
[1755166512705,0.72751111,121480.0,121470.0,0.001]
[1755166512918,0.72751111,121480.0,121470.0,0.12772]
[1755166513121,0.80999554,121480.0,121470.0,0.12772]
[1755166514090,0.72751111,121480.0,121470.0,0.12768]
[1755166515358,0.72751111,121480.0,121470.0,0.001]
[1755166515570,0.72751111,121480.0,121470.0,0.12768]
[1755166517065,0.17817018,121480.0,121470.0,0.12768]
[1755166517276,0.6606634,121480.0,121470.0,0.12768]
[1755166520095,0.6606634,121480.0,121470.0,0.001]
[1755166520352,0.6606634,121480.0,121470.0,0.12768]
[1755166522315,0.74314783,121480.0,121470.0,0.001]
[1755166522532,0.74314783,121480.0,121470.0,0.12768]
[1755166522703,0.6606634,121480.0,121470.0,0.001]
[1755166523100,0.6606634,121480.0,121470.0,0.12768]
[1755166523500,0.17817018,121480.0,121470.0,0.001]
[1755166523843,0.6606634,121480.0,121470.0,0.001]
[1755166524045,0.6606634,121480.0,121470.0,0.12768]
[1755166532167,0.17817018,121480.0,121470.0,0.12768]
[1755166532374,0.6606634,121480.0,121470.0,0.12768]
[1755166533787,0.17817018,121480.0,121470.0,0.12768]
[1755166533944,0.6606634,121480.0,121470.0,0.001]
[1755166534146,0.6606634,121480.0,121470.0,0.12764]
[1755166536316,0.6606634,121480.0,121470.0,0.001]
[1755166536527,0.6606634,121480.0,121470.0,0.12764]
[1755166536937,0.6606634,121480.0,121470.0,0.1276]
[1755166537144,0.74314783,121480.0,121470.0,0.1276]
[1755166537558,0.6606634,121480.0,121470.0,0.1276]
[1755166537790,0.17288018,121480.0,121470.0,0.1276]
[1755166537994,0.17288018,121480.0,121470.0,0.6276]
[1755166538435,0.17288018,121480.0,121470.0,0.1276]
[1755166538845,0.17288018,121480.0,121470.0,0.6276]
[1755166539046,0.17288018,121480.0,121470.0,0.1276]
[1755166540570,0.17288018,121480.0,121470.0,0.32508]
[1755166541433,0.17288018,121480.0,121470.0,0.3600571]
[1755166541676,0.17288018,121480.0,121470.0,0.32508]
[1755166542418,0.17288018,121480.0,121470.0,0.19848]
[1755166542620,0.17288018,121480.0,121470.0,0.82508]
[1755166542823,0.17288018,121480.0,121470.0,0.32508]
[1755166552202,0.17589018,121480.0,121470.0,0.32504]
[1755166552429,0.17288018,121480.0,121470.0,0.32504]
[1755166552671,0.17815373,121490.0,121470.0,0.28120325]
[1755166552919,0.17815373,121490.0,121480.0,0.08683915]
[1755166552920,0.01052113,121490.0,121480.0,0.08683915]
[1755166553174,0.00229,121490.0,121480.0,0.21339915]
[1755166553410,0.1669126,121490.0,121480.0,0.20928325]
[1755166554657,0.1669126,121490.0,121480.0,0.21128325]
[1755166555101,0.1669126,121490.0,121480.0,1.31501125]
[1755166555308,0.1669126,121490.0,121480.0,1.44157125]
[1755166555515,0.1669126,121490.0,121480.0,1.46625825]
[1755166555954,0.1669126,121490.0,121480.0,1.54874268]
[1755166556140,0.1669126,121490.0,121480.0,1.55074268]
[1755166561549,0.00229,121490.0,121480.0,1.55074268]
[1755166562844,0.1669126,121490.0,121480.0,1.55074268]
[1755166563511,0.00229,121490.0,121480.0,1.55074268]
[1755166563930,0.00229,121490.0,121480.0,1.42418268]
[1755166564139,0.00229,121490.0,121480.0,1.55070268]
[1755166565876,0.00229,121490.0,121480.0,1.46821825]
[1755166569117,0.00229,121490.0,121480.0,1.34169825]
[1755166569346,0.00229,121490.0,121480.0,1.48562727]
[1755166570420,0.00229,121490.0,121480.0,1.35914727]
[1755166570622,0.00229,121490.0,121480.0,1.48562727]
[1755166571317,0.00229,121490.0,121480.0,1.5681117]
[1755166572843,0.00229,121490.0,121480.0,1.4416317]
[1755166572988,0.00229,121490.0,121480.0,1.5681117]
[1755166576422,0.00229,121490.0,121480.0,1.60476459]
[1755166576618,0.00229,121490.0,121480.0,1.47828459]
[1755166577007,0.00229,121490.0,121480.0,1.60472459]
[1755166580324,0.00229,121490.0,121480.0,1.47828459]
[1755166580527,0.00229,121490.0,121480.0,1.60472459]
[1755166581792,0.00764,121490.0,121480.0,1.60472459]
[1755166582005,0.00764,121490.0,121480.0,1.55062268]
[1755166582210,0.1722626,121490.0,121480.0,1.32643768]
[1755166582561,0.65475582,121490.0,121480.0,0.53389468]
[1755166582758,0.65475582,121490.0,121480.0,0.21316325]
[1755166582958,0.65475582,121490.0,121480.0,0.55316325]
[1755166583165,0.65475582,121490.0,121480.0,0.004]
[1755166583404,0.65475582,121490.0,121480.0,0.63044]
[1755166583591,0.65475582,121490.0,121480.0,0.004]
[1755166583790,0.65475582,121490.0,121480.0,0.63044]
[1755166583990,0.65475582,121490.0,121480.0,0.13044]
[1755166584410,0.65475582,121490.0,121480.0,0.12844]
[1755166584620,0.65475582,121490.0,121480.0,0.12944]
[1755166585228,0.65475582,121490.0,121480.0,0.001]
[1755166585387,0.65475582,121490.0,121480.0,0.12844]
[1755166586072,0.65475582,121490.0,121480.0,0.12744]
[1755166586978,0.65475582,121490.0,121480.0,0.12644]
[1755166592054,0.16463615,121480.0,121470.0,0.5374]
[1755166592283,0.65247937,121480.0,121470.0,0.1974]
[1755166592463,0.65247937,121480.0,121470.0,0.32384]
[1755166593142,0.65247937,121480.0,121470.0,0.1974]
[1755166593369,0.65247937,121480.0,121470.0,0.32484]
[1755166594296,0.65247937,121480.0,121470.0,0.1994]
[1755166594514,0.65247937,121480.0,121470.0,0.32584]
[1755166595522,0.65247937,121480.0,121470.0,0.1994]
[1755166595728,0.65247937,121480.0,121470.0,0.32584]
[1755166600072,0.65247937,121480.0,121470.0,0.1994]
[1755166600280,0.65247937,121480.0,121470.0,0.3258]
[1755166601946,0.65247937,121480.0,121470.0,0.1994]
[1755166602157,0.96214387,121480.0,121470.0,0.3258]
[1755166602535,0.91837937,121480.0,121470.0,0.1994]
[1755166602739,0.91837937,121480.0,121470.0,0.3258]
[1755166607161,0.43588615,121480.0,121470.0,0.3258]
[1755166607377,0.91837937,121480.0,121470.0,0.3258]
[1755166611153,0.43588615,121480.0,121470.0,0.3258]
[1755166611351,0.91837937,121480.0,121470.0,0.3258]
[1755166614621,0.43588615,121480.0,121470.0,0.3258]
[1755166614829,0.91837937,121480.0,121470.0,0.3258]
[1755166627600,0.91837937,121480.0,121470.0,0.32572]
[1755166628016,0.91837937,121480.0,121470.0,0.12832]
[1755166630514,0.43053615,121480.0,121470.0,0.002]
[1755166630820,0.43053615,121480.0,121470.0,0.12832]
[1755166631668,0.43053615,121480.0,121470.0,0.002]
[1755166631873,0.43053615,121480.0,121470.0,0.12832]
[1755166633844,0.16463615,121480.0,121470.0,0.62832]
[1755166634061,0.16463615,121480.0,121470.0,1.87029825]
[1755166634269,0.16463615,121480.0,121470.0,1.99661825]
[1755166634905,0.16463615,121480.0,121470.0,1.69729268]
[1755166635115,0.16463615,121480.0,121470.0,0.81423168]
[1755166635320,0.16463615,121480.0,121470.0,0.68188725]
[1755166637545,0.16463615,121480.0,121470.0,0.87932725]
[1755166637754,0.16463615,121480.0,121470.0,0.82932725]
[1755166644471,0.1669126,121490.0,121470.0,1.04300725]
[1755166644698,0.1669126,121490.0,121480.0,0.20900325]
[1755166646660,0.00229,121490.0,121480.0,0.28651628]
[1755166646835,0.00229,121490.0,121480.0,4.62284128]
[1755166647020,0.00229,121490.0,121480.0,4.74908128]
[1755166647214,0.00229,121490.0,121480.0,4.62284128]
[1755166647414,0.00229,121490.0,121480.0,4.75408128]
[1755166648322,0.00229,121490.0,121480.0,4.6452903]
[1755166648529,0.00229,121490.0,121480.0,4.7715303]
[1755166648744,0.00229,121490.0,121480.0,4.6452903]
[1755166648960,0.00229,121490.0,121480.0,4.96334933]
[1755166651178,0.00229,121490.0,121480.0,4.83710933]
[1755166651384,0.00229,121490.0,121480.0,4.7715303]
[1755166652313,0.00229,121490.0,121480.0,4.85992645]
[1755166652541,0.00229,121490.0,121480.0,4.98616645]
[1755166652752,0.00229,121490.0,121480.0,5.01334933]
[1755166652968,0.00229,121490.0,121480.0,4.88710933]
[1755166653167,0.00229,121490.0,121480.0,5.17594548]
[1755166653879,0.00229,121490.0,121480.0,5.17894548]
[1755166654083,0.00229,121490.0,121480.0,5.17294548]
[1755166654268,0.00229,121490.0,121480.0,5.17594548]
[1755166654528,0.00229,121490.0,121480.0,5.04974548]
[1755166654946,0.00229,121490.0,121480.0,5.18323648]
[1755166655562,0.00229,121490.0,121480.0,5.14360648]
[1755166655775,0.00229,121490.0,121480.0,5.29274648]
[1755166656209,0.00229,121490.0,121480.0,5.28874648]
[1755166656420,0.00229,121490.0,121480.0,5.28974648]
[1755166657074,0.00229,121490.0,121480.0,5.28674648]
[1755166657500,0.00229,121490.0,121480.0,5.28974648]
[1755166658130,0.003,121500.0,121490.0,0.56511162]
[1755166658345,0.003,121510.0,121500.0,0.025]
[1755166658555,0.003,121510.0,121500.0,5.73850654]
[1755166658767,0.003,121510.0,121500.0,5.73439132]
[1755166658974,0.003,121510.0,121500.0,5.86055132]
[1755166659464,0.003,121510.0,121500.0,6.05153875]
[1755166659702,0.003,121510.0,121500.0,6.13234078]
[1755166660097,0.003,121510.0,121500.0,6.13859146]
[1755166660341,0.003,121510.0,121500.0,6.13234078]
[1755166660553,0.003,121510.0,121500.0,6.13959146]
[1755166660831,0.003,121510.0,121500.0,6.14259146]
[1755166661458,0.003,121510.0,121500.0,6.13634078]
[1755166662216,0.003,121530.0,121520.0,0.56507098]
[1755166662422,0.003,121530.0,121520.0,5.80595331]
[1755166663062,0.003,121530.0,121520.0,5.84360331]
[1755166663497,0.003,121530.0,121520.0,5.84968331]
[1755166666080,0.003,121530.0,121520.0,5.85068331]
[1755166666483,0.003,121530.0,121520.0,5.81303331]
[1755166666962,0.003,121530.0,121520.0,5.68691331]
[1755166667181,0.003,121530.0,121520.0,5.81299331]